[Event "*** SCC Grand Prix: Titled Tuesday Blitz"]
[Site "Chess.com"]
[Date "2020.07.07"]
[Round "6"]
[White "Roza_Idrisova"]
[Black "googlegoom"]
[Result "1/2-1/2"]
[WhiteElo "2241"]
[BlackElo "2524"]
[TimeControl "180+1"]
[EndTime "11:07:39 PDT"]
[Termination "Game drawn by stalemate"]

1. d4 {[%clk 0:03:00.9]} 1... d5 {[%clk 0:02:07.1]} 2. Nf3 {[%clk 0:03:00]} 2...
Nf6 {[%clk 0:02:06.9]} 3. Bg5 {[%clk 0:02:59.2]} 3... e6 {[%clk 0:02:07.2]} 4.
Nbd2 {[%clk 0:02:57.9]} 4... Be7 {[%clk 0:02:07.7]} 5. e3 {[%clk 0:02:57.6]}
5... c5 {[%clk 0:02:07.7]} 6. c3 {[%clk 0:02:56.4]} 6... Nc6 {[%clk 0:02:08.2]}
7. Bd3 {[%clk 0:02:56]} 7... a6 {[%clk 0:02:07.6]} 8. a4 {[%clk 0:02:55.2]} 8...
b6 {[%clk 0:02:07.8]} 9. O-O {[%clk 0:02:54.6]} 9... Bb7 {[%clk 0:02:08.3]} 10.
Ne5 {[%clk 0:02:54.5]} 10... Nxe5 {[%clk 0:02:07.4]} 11. dxe5 {[%clk 0:02:54.3]}
11... Nd7 {[%clk 0:02:08.3]} 12. Bxe7 {[%clk 0:02:51]} 12... Qxe7 {[%clk
0:02:09.2]} 13. f4 {[%clk 0:02:48.8]} 13... g6 {[%clk 0:02:05.2]} 14. Qe2 {[%clk
0:02:47.4]} 14... f6 {[%clk 0:02:04.8]} 15. exf6 {[%clk 0:02:46.7]} 15... Qxf6
{[%clk 0:02:03.1]} 16. e4 {[%clk 0:02:45.1]} 16... O-O {[%clk 0:02:03]} 17. exd5
{[%clk 0:02:37.2]} 17... exd5 {[%clk 0:02:01.5]} 18. Rae1 {[%clk 0:02:36.2]}
18... Rae8 {[%clk 0:01:21]} 19. Qg4 {[%clk 0:02:27.8]} 19... Bc6 {[%clk
0:01:06.9]} 20. g3 {[%clk 0:02:24.4]} 20... Bxa4 {[%clk 0:01:05.1]} 21. Bxa6
{[%clk 0:02:16.8]} 21... Bc6 {[%clk 0:00:53]} 22. Bd3 {[%clk 0:02:15.6]} 22...
Kh8 {[%clk 0:00:49]} 23. Ra1 {[%clk 0:02:06.6]} 23... Re3 {[%clk 0:00:42.5]} 24.
Bc2 {[%clk 0:01:46.9]} 24... Qe6 {[%clk 0:00:42.7]} 25. Qxe6 {[%clk 0:01:45.6]}
25... Rxe6 {[%clk 0:00:42.5]} 26. Rfe1 {[%clk 0:01:43.8]} 26... Rfe8 {[%clk
0:00:42.5]} 27. Rxe6 {[%clk 0:01:43]} 27... Rxe6 {[%clk 0:00:43.4]} 28. Kf2
{[%clk 0:01:43.2]} 28... Nf6 {[%clk 0:00:40.9]} 29. h3 {[%clk 0:01:41.6]} 29...
d4 {[%clk 0:00:36.1]} 30. cxd4 {[%clk 0:01:40.2]} 30... cxd4 {[%clk 0:00:37]}
31. Re1 {[%clk 0:01:28.5]} 31... Rxe1 {[%clk 0:00:32.8]} 32. Kxe1 {[%clk
0:01:28]} 32... Nd5 {[%clk 0:00:16.6]} 33. Nb3 {[%clk 0:01:22.7]} 33... Ne3
{[%clk 0:00:15.7]} 34. Nxd4 {[%clk 0:01:18.4]} 34... Bd7 {[%clk 0:00:14.2]} 35.
h4 {[%clk 0:01:13.7]} 35... Kg7 {[%clk 0:00:10.1]} 36. Be4 {[%clk 0:01:11.7]}
36... Nc4 {[%clk 0:00:06.9]} 37. b3 {[%clk 0:01:10.7]} 37... Na5 {[%clk
0:00:06.2]} 38. Kd2 {[%clk 0:01:08.4]} 38... Kf6 {[%clk 0:00:06.6]} 39. Kc3
{[%clk 0:01:08.1]} 39... Bg4 {[%clk 0:00:04.1]} 40. Kb4 {[%clk 0:01:07.4]} 40...
Bd1 {[%clk 0:00:03.3]} 41. Bd5 {[%clk 0:00:59.2]} 41... h6 {[%clk 0:00:03.3]}
42. Kb5 {[%clk 0:00:56.5]} 42... g5 {[%clk 0:00:02.8]} 43. hxg5+ {[%clk
0:00:55.8]} 43... hxg5 {[%clk 0:00:03.7]} 44. Kxb6 {[%clk 0:00:55]} 44... Nxb3
{[%clk 0:00:03.5]} 45. Bxb3 {[%clk 0:00:47.7]} 45... gxf4 {[%clk 0:00:04.4]} 46.
Bxd1 {[%clk 0:00:40.8]} 46... fxg3 {[%clk 0:00:02.4]} 47. Bf3 {[%clk 0:00:40.8]}
47... Ke5 {[%clk 0:00:02.3]} 48. Kc5 {[%clk 0:00:40.4]} 48... Kf4 {[%clk
0:00:02.4]} 49. Bg2 {[%clk 0:00:40.3]} 49... Ke3 {[%clk 0:00:02.6]} 50. Nf3
{[%clk 0:00:35.7]} 50... Kf2 {[%clk 0:00:03]} 51. Nh4 {[%clk 0:00:35.7]} 51...
Ke3 {[%clk 0:00:03]} 52. Kd5 {[%clk 0:00:35]} 52... Kf4 {[%clk 0:00:03.7]} 53.
Kd4 {[%clk 0:00:34.2]} 53... Kg4 {[%clk 0:00:04]} 54. Nf3 {[%clk 0:00:34.2]}
54... Kf4 {[%clk 0:00:04.9]} 55. Kd3 {[%clk 0:00:34.1]} 55... Kg4 {[%clk
0:00:05.1]} 56. Ke3 {[%clk 0:00:34]} 56... Kf5 {[%clk 0:00:04.2]} 57. Ne1 {[%clk
0:00:32.8]} 57... Ke6 {[%clk 0:00:05.1]} 58. Kf4 {[%clk 0:00:32.6]} 58... Kd7
{[%clk 0:00:06]} 59. Be4 {[%clk 0:00:30.9]} 59... Ke6 {[%clk 0:00:06.9]} 60. Ng2
{[%clk 0:00:29.4]} 60... Kd6 {[%clk 0:00:07.8]} 61. Kxg3 {[%clk 0:00:28.9]}
61... Ke6 {[%clk 0:00:08.7]} 62. Kf4 {[%clk 0:00:28.9]} 62... Kf6 {[%clk
0:00:09.6]} 63. Ne3 {[%clk 0:00:28.2]} 63... Ke6 {[%clk 0:00:10.5]} 64. Nc4
{[%clk 0:00:27.5]} 64... Kf6 {[%clk 0:00:10.7]} 65. Bf5 {[%clk 0:00:27.6]} 65...
Ke7 {[%clk 0:00:10.8]} 66. Ke5 {[%clk 0:00:27.5]} 66... Kf7 {[%clk 0:00:11.7]}
67. Nd6+ {[%clk 0:00:26.9]} 67... Ke7 {[%clk 0:00:12.1]} 68. Bg6 {[%clk
0:00:23]} 68... Kd7 {[%clk 0:00:11.9]} 69. Bf7 {[%clk 0:00:21.8]} 69... Ke7
{[%clk 0:00:12.2]} 70. Be6 {[%clk 0:00:21]} 70... Kf8 {[%clk 0:00:11.5]} 71. Kf6
{[%clk 0:00:20.9]} 1/2-1/2

[Event "*** SCC Grand Prix: Titled Tuesday Blitz"]
[Site "Chess.com"]
[Date "2020.07.07"]
[Round "6"]
[White "Fighter008"]
[Black "Ati1517"]
[Result "0-1"]
[WhiteElo "2562"]
[BlackElo "2376"]
[TimeControl "180+1"]
[EndTime "11:07:40 PDT"]
[Termination "Ati1517 won by resignation"]

1. e4 {[%clk 0:02:59.3]} 1... e5 {[%clk 0:02:58.7]} 2. Nf3 {[%clk 0:02:59.1]}
2... Nc6 {[%clk 0:02:58.8]} 3. Nc3 {[%clk 0:02:55.4]} 3... Nf6 {[%clk
0:02:58.3]} 4. Bb5 {[%clk 0:02:55.2]} 4... Bc5 {[%clk 0:02:55.8]} 5. O-O {[%clk
0:02:54.6]} 5... d6 {[%clk 0:02:50.7]} 6. d4 {[%clk 0:02:51.6]} 6... exd4 {[%clk
0:02:49.9]} 7. Nxd4 {[%clk 0:02:51.7]} 7... Bd7 {[%clk 0:02:48.2]} 8. Nf5 {[%clk
0:02:51.8]} 8... O-O {[%clk 0:02:43]} 9. Bg5 {[%clk 0:02:50.7]} 9... a6 {[%clk
0:02:37.4]} 10. Bd3 {[%clk 0:02:30.5]} 10... Bxf5 {[%clk 0:02:23.3]} 11. exf5
{[%clk 0:02:30]} 11... Bd4 {[%clk 0:02:23.5]} 12. Nd5 {[%clk 0:02:18.4]} 12...
Bxb2 {[%clk 0:01:51.7]} 13. Rb1 {[%clk 0:02:07.7]} 13... Be5 {[%clk 0:01:51.5]}
14. Kh1 {[%clk 0:01:57.4]} 14... Ne7 {[%clk 0:01:45.4]} 15. Nxf6+ {[%clk
0:01:53.9]} 15... Bxf6 {[%clk 0:01:44.4]} 16. Bxf6 {[%clk 0:01:53.2]} 16... gxf6
{[%clk 0:01:45.3]} 17. Rxb7 {[%clk 0:01:51.9]} 17... Kh8 {[%clk 0:01:41.7]} 18.
Qh5 {[%clk 0:01:46]} 18... Nd5 {[%clk 0:01:34]} 19. Qh4 {[%clk 0:01:22.9]} 19...
Rg8 {[%clk 0:01:29.1]} 20. Bc4 {[%clk 0:01:12.8]} 20... Nb6 {[%clk 0:01:28.1]}
21. Bxf7 {[%clk 0:01:10.1]} 21... Rg7 {[%clk 0:01:27.5]} 22. Be6 {[%clk
0:01:07.6]} 22... Qe8 {[%clk 0:01:27.2]} 23. Qe4 {[%clk 0:00:38.1]} 23... Na4
{[%clk 0:01:09.7]} 24. Rb4 {[%clk 0:00:24.9]} 24... Nc5 {[%clk 0:01:05.1]} 25.
Qd5 {[%clk 0:00:22.7]} 25... Nxe6 {[%clk 0:01:02.6]} 26. fxe6 {[%clk 0:00:22.4]}
26... Rg5 {[%clk 0:01:02.5]} 27. Qf3 {[%clk 0:00:20.7]} 27... Rg6 {[%clk
0:00:52.1]} 28. Re1 {[%clk 0:00:20.3]} 28... Qg8 {[%clk 0:00:37.8]} 29. e7
{[%clk 0:00:18.9]} 29... Re8 {[%clk 0:00:37.8]} 30. Rbe4 {[%clk 0:00:19]} 30...
Qxa2 {[%clk 0:00:36.7]} 31. h4 {[%clk 0:00:18.9]} 31... Qxc2 {[%clk 0:00:35.8]}
32. h5 {[%clk 0:00:17.5]} 32... Rh6 {[%clk 0:00:36]} 33. Qg4 {[%clk 0:00:11.2]}
33... Qc5 {[%clk 0:00:32.2]} 34. Kg1 {[%clk 0:00:10.2]} 34... Qxh5 {[%clk
0:00:20.9]} 35. Qxh5 {[%clk 0:00:10.4]} 35... Rxh5 {[%clk 0:00:21.5]} 36. Rc4
{[%clk 0:00:10.7]} 36... Rc5 {[%clk 0:00:20.3]} 37. Ra4 {[%clk 0:00:08.4]} 37...
Re5 {[%clk 0:00:19.9]} 38. Rxe5 {[%clk 0:00:07.1]} 38... fxe5 {[%clk 0:00:20]}
39. Rxa6 {[%clk 0:00:08]} 39... Rxe7 {[%clk 0:00:20.5]} 40. Kf1 {[%clk
0:00:08.7]} 40... d5 {[%clk 0:00:19.7]} 41. Ke2 {[%clk 0:00:09.2]} 41... c5
{[%clk 0:00:19.3]} 42. Rc6 {[%clk 0:00:09.5]} 42... c4 {[%clk 0:00:19.4]} 43.
Rc5 {[%clk 0:00:09.9]} 43... Rd7 {[%clk 0:00:19.6]} 44. Ke3 {[%clk 0:00:10.4]}
44... Kg7 {[%clk 0:00:19.3]} 45. Rc6 {[%clk 0:00:11]} 45... d4+ {[%clk 0:00:19]}
46. Ke2 {[%clk 0:00:09.4]} 46... c3 {[%clk 0:00:18.4]} 47. Kd3 {[%clk
0:00:09.5]} 47... h5 {[%clk 0:00:17.8]} 48. f3 {[%clk 0:00:09.7]} 48... Rb7
{[%clk 0:00:17.6]} 49. Re6 {[%clk 0:00:09.5]} 49... Rb2 {[%clk 0:00:17.5]} 50.
Rxe5 {[%clk 0:00:09.8]} 50... Rd2+ {[%clk 0:00:17.5]} 51. Ke4 {[%clk 0:00:09.7]}
51... c2 {[%clk 0:00:17.4]} 52. Rc5 {[%clk 0:00:09.6]} 52... d3 {[%clk
0:00:17.3]} 53. Ke3 {[%clk 0:00:08.7]} 53... Rd1 {[%clk 0:00:17.6]} 54. g4
{[%clk 0:00:06.4]} 54... c1=Q+ {[%clk 0:00:17.4]} 55. Rxc1 {[%clk 0:00:05.8]}
55... Rxc1 {[%clk 0:00:17.7]} 56. gxh5 {[%clk 0:00:05.9]} 56... Rd1 {[%clk
0:00:17.5]} 57. f4 {[%clk 0:00:05.7]} 57... Kh6 {[%clk 0:00:17.7]} 58. f5 {[%clk
0:00:06]} 58... Kxh5 {[%clk 0:00:18]} 59. f6 {[%clk 0:00:06.5]} 0-1

[Event "*** SCC Grand Prix: Titled Tuesday Blitz"]
[Site "Chess.com"]
[Date "2020.07.07"]
[Round "6"]
[White "ErikRonka"]
[Black "GjakanTati"]
[Result "0-1"]
[WhiteElo "2388"]
[BlackElo "2576"]
[TimeControl "180+1"]
[EndTime "11:07:41 PDT"]
[Termination "GjakanTati won on time"]

1. e4 {[%clk 0:03:00.9]} 1... c6 {[%clk 0:02:56.9]} 2. Nf3 {[%clk 0:02:58.7]}
2... d5 {[%clk 0:02:57.8]} 3. d3 {[%clk 0:02:58]} 3... dxe4 {[%clk 0:02:55.8]}
4. dxe4 {[%clk 0:02:57.6]} 4... Qxd1+ {[%clk 0:02:56.7]} 5. Kxd1 {[%clk
0:02:57.7]} 5... Nf6 {[%clk 0:02:57.3]} 6. Nfd2 {[%clk 0:02:57.2]} 6... g6
{[%clk 0:02:54.6]} 7. f3 {[%clk 0:02:56.9]} 7... Bg7 {[%clk 0:02:54.7]} 8. c3
{[%clk 0:02:56.7]} 8... O-O {[%clk 0:02:54.8]} 9. Kc2 {[%clk 0:02:56.4]} 9...
Nfd7 {[%clk 0:02:50.3]} 10. Nb3 {[%clk 0:02:49.3]} 10... Ne5 {[%clk 0:02:48.2]}
11. Be3 {[%clk 0:02:35.8]} 11... f5 {[%clk 0:02:46.9]} 12. N1d2 {[%clk
0:02:32.2]} 12... Nbd7 {[%clk 0:02:40.4]} 13. Nc5 {[%clk 0:01:28.2]} 13... Nf6
{[%clk 0:02:34.4]} 14. Nc4 {[%clk 0:01:26.9]} 14... Nf7 {[%clk 0:02:29.5]} 15.
exf5 {[%clk 0:01:04.4]} 15... gxf5 {[%clk 0:02:18.4]} 16. Bd4 {[%clk 0:00:43.8]}
16... Nd5 {[%clk 0:02:06.6]} 17. Bxg7 {[%clk 0:00:43.1]} 17... Kxg7 {[%clk
0:02:06.4]} 18. Nd3 {[%clk 0:00:41.9]} 18... Kf6 {[%clk 0:01:52.8]} 19. Re1
{[%clk 0:00:41.3]} 19... f4 {[%clk 0:01:47.8]} 20. g3 {[%clk 0:00:36]} 20... Bf5
{[%clk 0:01:47.3]} 21. Kc1 {[%clk 0:00:31.8]} 21... Ng5 {[%clk 0:01:01.8]} 22.
Nce5 {[%clk 0:00:25]} 22... Rad8 {[%clk 0:00:53.8]} 23. gxf4 {[%clk 0:00:23.7]}
23... Nh3 {[%clk 0:00:52.3]} 24. Nc5 {[%clk 0:00:15.8]} 24... Nf2 {[%clk
0:00:34.7]} 25. Rg1 {[%clk 0:00:14.1]} 25... Nxf4 {[%clk 0:00:34.8]} 26. Ng4+
{[%clk 0:00:12.4]} 26... Bxg4 {[%clk 0:00:29]} 27. fxg4 {[%clk 0:00:13.3]} 27...
b6 {[%clk 0:00:28.1]} 28. Ne4+ {[%clk 0:00:13.1]} 28... Nxe4 {[%clk 0:00:27.8]}
29. Rxe4 {[%clk 0:00:14]} 29... e5 {[%clk 0:00:26.2]} 30. h4 {[%clk 0:00:13.5]}
30... Rd6 {[%clk 0:00:25]} 31. Kc2 {[%clk 0:00:13.6]} 31... Rfd8 {[%clk
0:00:24.7]} 32. g5+ {[%clk 0:00:13.7]} 32... Kf5 {[%clk 0:00:23.8]} 33. Re3
{[%clk 0:00:13.8]} 33... Rd2+ {[%clk 0:00:23.6]} 34. Kc1 {[%clk 0:00:13.9]}
34... Rd1+ {[%clk 0:00:19.7]} 35. Kc2 {[%clk 0:00:13.9]} 35... R8d2+ {[%clk
0:00:20.6]} 36. Kb3 {[%clk 0:00:14.2]} 36... a5 {[%clk 0:00:15.7]} 37. a4 {[%clk
0:00:13.6]} 37... Ke6 {[%clk 0:00:13.8]} 38. h5 {[%clk 0:00:10.9]} 38... Nxh5
{[%clk 0:00:12.3]} 39. Bh3+ {[%clk 0:00:11]} 39... Kd6 {[%clk 0:00:12]} 40. Rxd1
{[%clk 0:00:07]} 40... Rxd1 {[%clk 0:00:12.9]} 41. Bg4 {[%clk 0:00:07.6]} 41...
Rh1 {[%clk 0:00:12.9]} 42. Rd3+ {[%clk 0:00:07.9]} 42... Kc5 {[%clk 0:00:13.1]}
43. Rd7 {[%clk 0:00:05.7]} 43... Nf4 {[%clk 0:00:11.7]} 44. Rc7 {[%clk
0:00:04.9]} 44... Kd6 {[%clk 0:00:11.5]} 45. Rxc6+ {[%clk 0:00:03.7]} 45... Kxc6
{[%clk 0:00:10.4]} 46. Bf3+ {[%clk 0:00:04.6]} 46... Kc5 {[%clk 0:00:10.6]} 47.
Bxh1 {[%clk 0:00:05.5]} 47... Ne6 {[%clk 0:00:11]} 48. g6 {[%clk 0:00:04]} 48...
hxg6 {[%clk 0:00:10.9]} 49. Kc2 {[%clk 0:00:04.9]} 49... Nf4 {[%clk 0:00:10.4]}
50. Bf3 {[%clk 0:00:03.6]} 50... g5 {[%clk 0:00:10.2]} 51. b3 {[%clk 0:00:04]}
51... Nd5 {[%clk 0:00:09.2]} 52. Kd3 {[%clk 0:00:03.1]} 52... Nf6 {[%clk
0:00:09.5]} 53. Be2 {[%clk 0:00:02.6]} 53... Kd5 {[%clk 0:00:08.9]} 54. Ke3
{[%clk 0:00:02.4]} 54... Ke6 {[%clk 0:00:09.2]} 55. Bc4+ {[%clk 0:00:03]} 55...
Kf5 {[%clk 0:00:09.4]} 56. Bd3+ {[%clk 0:00:03.9]} 56... Kg4 {[%clk 0:00:09.5]}
57. b4 {[%clk 0:00:04.8]} 57... Kh3 {[%clk 0:00:09.3]} 58. bxa5 {[%clk
0:00:04.4]} 58... bxa5 {[%clk 0:00:10.2]} 59. c4 {[%clk 0:00:05.3]} 59... g4
{[%clk 0:00:10.3]} 60. c5 {[%clk 0:00:05.5]} 60... g3 {[%clk 0:00:10.8]} 61. c6
{[%clk 0:00:05.7]} 61... g2 {[%clk 0:00:10.6]} 62. Bf5+ {[%clk 0:00:03.7]} 62...
Kh2 {[%clk 0:00:10.4]} 63. c7 {[%clk 0:00:02.9]} 63... Nd5+ {[%clk 0:00:10.7]}
64. Kf2 {[%clk 0:00:02]} 64... Nxc7 {[%clk 0:00:11.6]} 0-1

[Event "*** SCC Grand Prix: Titled Tuesday Blitz"]
[Site "Chess.com"]
[Date "2020.07.07"]
[Round "6"]
[White "floplover"]
[Black "m_ezat"]
[Result "1/2-1/2"]
[WhiteElo "2316"]
[BlackElo "2534"]
[TimeControl "180+1"]
[EndTime "11:07:44 PDT"]
[Termination "Game drawn by repetition"]

1. d4 {[%clk 0:03:00.9]} 1... Nf6 {[%clk 0:02:59.8]} 2. c4 {[%clk 0:03:00.3]}
2... g6 {[%clk 0:03:00.4]} 3. Nc3 {[%clk 0:03:00.3]} 3... Bg7 {[%clk 0:03:00.6]}
4. e4 {[%clk 0:03:00]} 4... d6 {[%clk 0:03:01.1]} 5. Nf3 {[%clk 0:03:00.2]} 5...
O-O {[%clk 0:03:01.6]} 6. Be2 {[%clk 0:03:00.8]} 6... e5 {[%clk 0:03:01.2]} 7.
O-O {[%clk 0:03:01.3]} 7... Nc6 {[%clk 0:03:01.4]} 8. d5 {[%clk 0:03:01.2]} 8...
Ne7 {[%clk 0:03:01]} 9. b4 {[%clk 0:03:01.7]} 9... c6 {[%clk 0:03:01.3]} 10. Nd2
{[%clk 0:02:27.4]} 10... a5 {[%clk 0:03:00.9]} 11. bxa5 {[%clk 0:02:18.7]} 11...
Qxa5 {[%clk 0:02:57.2]} 12. Qc2 {[%clk 0:02:10.8]} 12... c5 {[%clk 0:02:56.4]}
13. a4 {[%clk 0:01:54.2]} 13... Qd8 {[%clk 0:02:54.7]} 14. Nb3 {[%clk
0:01:39.7]} 14... Nd7 {[%clk 0:02:52.6]} 15. a5 {[%clk 0:01:37.5]} 15... f5
{[%clk 0:02:50.8]} 16. Bd3 {[%clk 0:01:35]} 16... Nf6 {[%clk 0:02:49.1]} 17. Na4
{[%clk 0:01:27.1]} 17... f4 {[%clk 0:02:44.5]} 18. Nb6 {[%clk 0:01:22.7]} 18...
Rb8 {[%clk 0:02:45]} 19. Be2 {[%clk 0:01:10.9]} 19... g5 {[%clk 0:02:43.5]} 20.
Bd2 {[%clk 0:01:02.4]} 20... g4 {[%clk 0:02:37.7]} 21. Nxc8 {[%clk 0:01:01.8]}
21... Rxc8 {[%clk 0:02:35.1]} 22. f3 {[%clk 0:01:00.4]} 22... h5 {[%clk
0:02:33.2]} 23. a6 {[%clk 0:00:57.1]} 23... bxa6 {[%clk 0:02:32.5]} 24. Rxa6
{[%clk 0:00:58]} 24... Ng6 {[%clk 0:02:32.6]} 25. Na5 {[%clk 0:00:54.2]} 25...
Rf7 {[%clk 0:02:23.2]} 26. Nc6 {[%clk 0:00:50.4]} 26... Qf8 {[%clk 0:02:23.6]}
27. Rfa1 {[%clk 0:00:44.3]} 27... Bh6 {[%clk 0:02:19.1]} 28. Ra7 {[%clk
0:00:42]} 28... gxf3 {[%clk 0:02:08.5]} 29. Bxf3 {[%clk 0:00:36.2]} 29... Nh4
{[%clk 0:02:07.4]} 30. Rxf7 {[%clk 0:00:35.7]} 30... Qxf7 {[%clk 0:02:07.5]} 31.
Ra7 {[%clk 0:00:34.8]} 31... Rc7 {[%clk 0:02:07.5]} 32. Ra8+ {[%clk 0:00:30]}
32... Kh7 {[%clk 0:02:06]} 33. Be1 {[%clk 0:00:26.9]} 33... Bg5 {[%clk
0:01:38.8]} 34. Qb2 {[%clk 0:00:23.8]} 34... Rb7 {[%clk 0:01:27.5]} 35. Qxb7
{[%clk 0:00:21.2]} 35... Qxb7 {[%clk 0:01:27.3]} 36. Ra7 {[%clk 0:00:22.1]}
36... Qxa7 {[%clk 0:01:23.7]} 37. Nxa7 {[%clk 0:00:23]} 37... Ng6 {[%clk
0:01:09.4]} 38. Nb5 {[%clk 0:00:21.4]} 38... Ne8 {[%clk 0:01:09.3]} 39. Bxh5
{[%clk 0:00:20.8]} 39... Kh6 {[%clk 0:01:09.6]} 40. Bxg6 {[%clk 0:00:20.6]}
40... Kxg6 {[%clk 0:01:09.1]} 41. Ba5 {[%clk 0:00:21]} 41... Be7 {[%clk
0:01:07.8]} 42. Bc7 {[%clk 0:00:20.1]} 42... Kf7 {[%clk 0:01:05.1]} 43. Kf2
{[%clk 0:00:20.2]} 43... Nf6 {[%clk 0:01:04.5]} 44. Kf3 {[%clk 0:00:20]} 44...
Ne8 {[%clk 0:01:03.8]} 45. g3 {[%clk 0:00:18.2]} 45... fxg3 {[%clk 0:01:02.5]}
46. Kxg3 {[%clk 0:00:18.4]} 46... Kg6 {[%clk 0:01:02]} 47. Kg4 {[%clk
0:00:18.3]} 47... Nf6+ {[%clk 0:00:59.9]} 48. Kf3 {[%clk 0:00:18.4]} 48... Ne8
{[%clk 0:00:59.7]} 49. h3 {[%clk 0:00:18.7]} 49... Kh5 {[%clk 0:00:59.6]} 50.
Bb8 {[%clk 0:00:17.6]} 50... Kh4 {[%clk 0:00:58.9]} 51. Kg2 {[%clk 0:00:17.2]}
51... Kg5 {[%clk 0:00:57.4]} 52. Kg3 {[%clk 0:00:17]} 52... Nf6 {[%clk
0:00:55.4]} 53. h4+ {[%clk 0:00:15.6]} 53... Kh5 {[%clk 0:00:53.3]} 54. Kf3
{[%clk 0:00:14.2]} 54... Ne8 {[%clk 0:00:48.3]} 55. Nc7 {[%clk 0:00:13.8]} 55...
Nxc7 {[%clk 0:00:37.7]} 56. Bxc7 {[%clk 0:00:14.7]} 56... Kxh4 {[%clk
0:00:38.2]} 57. Bb8 {[%clk 0:00:15]} 57... Kh3 {[%clk 0:00:38]} 58. Bc7 {[%clk
0:00:15.4]} 58... Bf8 {[%clk 0:00:32.7]} 59. Bb8 {[%clk 0:00:15.7]} 59... Be7
{[%clk 0:00:23.8]} 60. Ke2 {[%clk 0:00:15.7]} 60... Kg3 {[%clk 0:00:23.1]} 61.
Kd3 {[%clk 0:00:16.2]} 61... Kf3 {[%clk 0:00:23.2]} 62. Bc7 {[%clk 0:00:16.4]}
62... Kf4 {[%clk 0:00:21.6]} 63. Bb8 {[%clk 0:00:16.7]} 63... Kf3 {[%clk
0:00:21.9]} 64. Bc7 {[%clk 0:00:17.1]} 64... Kf2 {[%clk 0:00:21]} 65. Bb8 {[%clk
0:00:17.4]} 65... Ke1 {[%clk 0:00:20.9]} 66. Bc7 {[%clk 0:00:17.7]} 66... Kd1
{[%clk 0:00:21.1]} 67. Ba5 {[%clk 0:00:17.6]} 67... Kc1 {[%clk 0:00:21]} 68. Bc7
{[%clk 0:00:17.5]} 68... Kb2 {[%clk 0:00:20.7]} 69. Ba5 {[%clk 0:00:17.5]} 69...
Kb3 {[%clk 0:00:21]} 70. Be1 {[%clk 0:00:17.4]} 70... Ka4 {[%clk 0:00:20.1]} 71.
Bf2 {[%clk 0:00:17.7]} 71... Kb3 {[%clk 0:00:20.3]} 72. Be1 {[%clk 0:00:18.1]}
72... Ka4 {[%clk 0:00:20.2]} 73. Bf2 {[%clk 0:00:18.5]} 73... Kb3 {[%clk
0:00:20.8]} 74. Be1 {[%clk 0:00:18.9]} 1/2-1/2

[Event "*** SCC Grand Prix: Titled Tuesday Blitz"]
[Site "Chess.com"]
[Date "2020.07.07"]
[Round "6"]
[White "Sankalp_Gupta2003"]
[Black "Volodar_Murzin"]
[Result "0-1"]
[WhiteElo "2820"]
[BlackElo "2688"]
[TimeControl "180+1"]
[EndTime "11:07:49 PDT"]
[Termination "Volodar_Murzin won by resignation"]

1. e4 {[%clk 0:03:00.9]} 1... c6 {[%clk 0:02:58.2]} 2. Nf3 {[%clk 0:03:01.4]}
2... d5 {[%clk 0:02:58.5]} 3. Nc3 {[%clk 0:03:02.3]} 3... Bg4 {[%clk 0:02:56.6]}
4. Be2 {[%clk 0:03:02]} 4... Bxf3 {[%clk 0:02:47.9]} 5. Bxf3 {[%clk 0:03:02.9]}
5... Nf6 {[%clk 0:02:46.6]} 6. O-O {[%clk 0:03:03]} 6... e6 {[%clk 0:02:43]} 7.
d4 {[%clk 0:03:02.8]} 7... dxe4 {[%clk 0:02:41.5]} 8. Nxe4 {[%clk 0:03:03.7]}
8... Nxe4 {[%clk 0:02:42.2]} 9. Bxe4 {[%clk 0:03:04.6]} 9... Nd7 {[%clk
0:02:42.8]} 10. c4 {[%clk 0:03:02]} 10... Nf6 {[%clk 0:02:42.3]} 11. Bc2 {[%clk
0:03:02.5]} 11... Bd6 {[%clk 0:02:42]} 12. b3 {[%clk 0:02:59.3]} 12... O-O
{[%clk 0:02:39.2]} 13. Qd3 {[%clk 0:02:58.9]} 13... Qa5 {[%clk 0:02:37]} 14. h3
{[%clk 0:02:55.4]} 14... Rad8 {[%clk 0:02:33.1]} 15. Bb2 {[%clk 0:02:54.5]}
15... Rfe8 {[%clk 0:02:14.7]} 16. Rfe1 {[%clk 0:02:53.5]} 16... Ba3 {[%clk
0:01:52.4]} 17. Bxa3 {[%clk 0:02:12.5]} 17... Qxa3 {[%clk 0:01:49.7]} 18. Qc3
{[%clk 0:02:09.7]} 18... a5 {[%clk 0:01:38.7]} 19. Rad1 {[%clk 0:02:02]} 19...
Qb4 {[%clk 0:01:31]} 20. Qg3 {[%clk 0:01:58.4]} 20... Rxd4 {[%clk 0:01:27.2]}
21. Rxd4 {[%clk 0:01:28.8]} 21... Qxe1+ {[%clk 0:01:24.2]} 22. Kh2 {[%clk
0:01:29.5]} 22... Qa1 {[%clk 0:01:16.9]} 23. Rd2 {[%clk 0:01:21.8]} 23... e5
{[%clk 0:01:06.9]} 24. Qe3 {[%clk 0:01:09.5]} 24... e4 {[%clk 0:00:58.7]} 25.
Qd4 {[%clk 0:00:47.9]} 25... Qxd4 {[%clk 0:00:53.1]} 26. Rxd4 {[%clk 0:00:48.8]}
26... Kf8 {[%clk 0:00:52.2]} 27. Kg3 {[%clk 0:00:45.3]} 27... e3 {[%clk
0:00:50.2]} 28. fxe3 {[%clk 0:00:46.2]} 28... Rxe3+ {[%clk 0:00:50]} 29. Kf2
{[%clk 0:00:46.8]} 29... Re5 {[%clk 0:00:47.5]} 30. a3 {[%clk 0:00:43.1]} 30...
Ke7 {[%clk 0:00:45.7]} 31. g3 {[%clk 0:00:40.7]} 31... g6 {[%clk 0:00:44.5]} 32.
Rd2 {[%clk 0:00:37.4]} 32... Nd7 {[%clk 0:00:41]} 33. b4 {[%clk 0:00:34.1]}
33... axb4 {[%clk 0:00:35.8]} 34. axb4 {[%clk 0:00:35]} 34... f5 {[%clk
0:00:20.3]} 35. c5 {[%clk 0:00:33.3]} 35... Nf6 {[%clk 0:00:19.9]} 36. Kf3
{[%clk 0:00:27.6]} 36... Nd5 {[%clk 0:00:19.2]} 37. Rd4 {[%clk 0:00:22.8]} 37...
Re3+ {[%clk 0:00:18.8]} 38. Kf2 {[%clk 0:00:23.1]} 38... Rc3 {[%clk 0:00:19.2]}
39. Bd1 {[%clk 0:00:20.6]} 39... Ke6 {[%clk 0:00:18.5]} 40. Bf3 {[%clk
0:00:20.5]} 40... Ke5 {[%clk 0:00:18.2]} 41. Rh4 {[%clk 0:00:19.5]} 41... h5
{[%clk 0:00:13.7]} 42. Ke2 {[%clk 0:00:17.7]} 42... Re3+ {[%clk 0:00:11.9]} 43.
Kf2 {[%clk 0:00:17.6]} 43... Rb3 {[%clk 0:00:12.2]} 44. Bxd5 {[%clk 0:00:16.4]}
44... cxd5 {[%clk 0:00:12.2]} 45. Ke2 {[%clk 0:00:12.6]} 45... Rxg3 {[%clk
0:00:09.4]} 46. b5 {[%clk 0:00:12.4]} 46... Rb3 {[%clk 0:00:09.8]} 47. c6 {[%clk
0:00:12.8]} 47... bxc6 {[%clk 0:00:08.8]} 48. bxc6 {[%clk 0:00:13.7]} 48... Rc3
{[%clk 0:00:09.2]} 49. Rb4 {[%clk 0:00:13.1]} 49... Rxc6 {[%clk 0:00:09.6]} 50.
Kd3 {[%clk 0:00:13.7]} 50... Rd6 {[%clk 0:00:09]} 51. h4 {[%clk 0:00:13.1]}
51... Rc6 {[%clk 0:00:08.4]} 52. Rb2 {[%clk 0:00:13.3]} 52... Rc4 {[%clk
0:00:08.6]} 53. Rg2 {[%clk 0:00:13.8]} 53... Rg4 {[%clk 0:00:08.1]} 54. Re2+
{[%clk 0:00:14.3]} 54... Kf6 {[%clk 0:00:08.6]} 55. Rh2 {[%clk 0:00:15.2]} 55...
Re4 {[%clk 0:00:06.8]} 56. Rh1 {[%clk 0:00:14.4]} 56... g5 {[%clk 0:00:06.1]}
57. hxg5+ {[%clk 0:00:15.3]} 57... Kxg5 {[%clk 0:00:07]} 58. Rg1+ {[%clk
0:00:16]} 58... Rg4 {[%clk 0:00:07.6]} 59. Rh1 {[%clk 0:00:16.4]} 59... h4
{[%clk 0:00:08.1]} 60. Ke3 {[%clk 0:00:16.4]} 60... d4+ {[%clk 0:00:08.7]} 61.
Kd3 {[%clk 0:00:15.8]} 61... Rg2 {[%clk 0:00:08.4]} 62. Kxd4 {[%clk 0:00:15.4]}
62... Kg4 {[%clk 0:00:08.9]} 63. Ke3 {[%clk 0:00:15.7]} 63... h3 {[%clk
0:00:08.8]} 64. Ra1 {[%clk 0:00:15.2]} 64... f4+ {[%clk 0:00:08.7]} 65. Kd3
{[%clk 0:00:13.7]} 65... h2 {[%clk 0:00:08.9]} 66. Rh1 {[%clk 0:00:14.1]} 66...
Kg3 {[%clk 0:00:06.9]} 67. Ke4 {[%clk 0:00:14]} 67... Rg1 {[%clk 0:00:07.3]} 0-1